[Event "Titled Tuesday Blitz December 20 Late 2022"]
[White "Shoker, Samy"]
[Black "Sarana, Alexey"]
[WhiteFideId "627143"]
[BlackFideId "24133795"]
[WhiteElo "2493"]
[BlackElo "2708"]
[Result "0-1"]
[Round "05"]
[TimeControl "180+1"]
[Date "2022.12.20"]
[WhiteClock "0:00:30"]
[BlackClock "0:00:12"]

1. Nf3 {[%clk 0:02:48]}  d5 {[%clk 0:02:57]} 2. g3 {[%clk 0:02:49]}  g6 {[%clk 0:02:57]} 3. Bg2 {[%clk 0:02:50]}  Bg7 {[%clk 0:02:58]} 4. c4 {[%clk 0:02:50]}  c6 {[%clk 0:02:57]} 5. Qa4 {[%clk 0:02:50]}  Nf6 {[%clk 0:02:53]} 6. cxd5 {[%clk 0:02:49]}  Nxd5 {[%clk 0:02:54]} 7. d4 {[%clk 0:02:49]}  O-O {[%clk 0:02:54]} 8. O-O {[%clk 0:02:47]}  Nb6 {[%clk 0:02:54]} 9. Qc2 {[%clk 0:02:46]}  Bg4 {[%clk 0:02:54]} 10. Rd1 {[%clk 0:02:42]}  Na6 {[%clk 0:02:50]} 11. a3 {[%clk 0:02:38]}  Rc8 {[%clk 0:02:39]} 12. Nc3 {[%clk 0:02:38]}  Qd6 {[%clk 0:02:03]} 13. Bf4 {[%clk 0:02:35]}  Qe6 {[%clk 0:02:03]} 14. h3 {[%clk 0:02:30]}  Bxf3 {[%clk 0:02:03]} 15. exf3 {[%clk 0:02:28]}  Rfd8 {[%clk 0:02:01]} 16. Re1 {[%clk 0:02:22]}  Qd7 {[%clk 0:02:01]} 17. Be5 {[%clk 0:02:20]}  Nc7 {[%clk 0:01:57]} 18. Rad1 {[%clk 0:02:18]}  Ne6 {[%clk 0:01:49]} 19. h4 {[%clk 0:02:11]}  f6 {[%clk 0:01:34]} 20. Bh3 {[%clk 0:01:50]}  Re8 {[%clk 0:01:20]} 21. Bf4 {[%clk 0:01:41]}  f5 {[%clk 0:01:20]} 22. Be5 {[%clk 0:01:38]}  Nd5 {[%clk 0:01:16]} 23. Re2 {[%clk 0:01:21]}  Nd8 {[%clk 0:01:10]} 24. Rde1 {[%clk 0:01:09]}  Nf7 {[%clk 0:01:03]} 25. f4 {[%clk 0:01:01]}  e6 {[%clk 0:01:00]} 26. Bf1 {[%clk 0:00:51]}  h5 {[%clk 0:00:59]} 27. Na4 {[%clk 0:00:49]}  b6 {[%clk 0:00:54]} 28. b4 {[%clk 0:00:49]}  Bf8 {[%clk 0:00:41]} 29. Qb3 {[%clk 0:00:49]}  Nxe5 {[%clk 0:00:36]} 30. dxe5 {[%clk 0:00:49]}  c5 {[%clk 0:00:35]} 31. bxc5 {[%clk 0:00:42]}  bxc5 {[%clk 0:00:36]} 32. Rd2 {[%clk 0:00:23]}  Rb8 {[%clk 0:00:27]} 33. Qc2 {[%clk 0:00:23]}  Qf7 {[%clk 0:00:19]} 34. Nc3 {[%clk 0:00:21]}  Nb6 {[%clk 0:00:19]} 35. Red1 {[%clk 0:00:20]}  c4 {[%clk 0:00:19]} 36. a4 {[%clk 0:00:19]}  Bb4 {[%clk 0:00:15]} 37. Rd4 {[%clk 0:00:19]}  Rbc8 {[%clk 0:00:13]} 38. Nb5 {[%clk 0:00:19]}  a5 {[%clk 0:00:12]} 39. Nd6 {[%clk 0:00:19]}  Bxd6 {[%clk 0:00:13]} 40. exd6 {[%clk 0:00:20]}  Red8 {[%clk 0:00:13]} 41. Rb1 {[%clk 0:00:21]}  Rc6 {[%clk 0:00:12]} 42. Rb5 {[%clk 0:00:21]}  Qa7 {[%clk 0:00:08]} 43. Qc3 {[%clk 0:00:20]}  Rcxd6 {[%clk 0:00:08]} 44. Rxd6 {[%clk 0:00:20]}  Rxd6 {[%clk 0:00:09]} 45. Qf6 {[%clk 0:00:20]}  Qf7 {[%clk 0:00:06]} 46. Qe5 {[%clk 0:00:20]}  Qc7 {[%clk 0:00:04]} 47. Rxa5 {[%clk 0:00:21]}  Rc6 {[%clk 0:00:03]} 48. Qf6 {[%clk 0:00:20]}  Kh7 {[%clk 0:00:03]} 49. Re5 {[%clk 0:00:20]}  c3 {[%clk 0:00:03]} 50. Bd3 {[%clk 0:00:20]}  c2 {[%clk 0:00:03]} 51. Bxc2 {[%clk 0:00:20]}  Rxc2 {[%clk 0:00:03]} 52. Rxe6 {[%clk 0:00:21]}  Nd5 {[%clk 0:00:04]} 53. Qe5 {[%clk 0:00:21]}  Qxe5 {[%clk 0:00:04]} 54. Rxe5 {[%clk 0:00:21]}  Nb4 {[%clk 0:00:04]} 55. a5 {[%clk 0:00:18]}  Ra2 {[%clk 0:00:04]} 56. Rb5 {[%clk 0:00:18]}  Nc6 {[%clk 0:00:04]} 57. Rb7+ {[%clk 0:00:18]}  Kh6 {[%clk 0:00:04]} 58. Rb6 {[%clk 0:00:18]}  Nxa5 {[%clk 0:00:05]} 59. Ra6 {[%clk 0:00:18]}  Ra3 {[%clk 0:00:05]} 60. Kg2 {[%clk 0:00:18]}  Nc4 {[%clk 0:00:06]} 61. Rc6 {[%clk 0:00:19]}  Nd2 {[%clk 0:00:07]} 62. Rc2 {[%clk 0:00:18]}  Ne4 {[%clk 0:00:07]} 63. f3 {[%clk 0:00:19]}  Nf6 {[%clk 0:00:07]} 64. Rb2 {[%clk 0:00:18]}  Nd5 {[%clk 0:00:07]} 65. Rd2 {[%clk 0:00:19]}  Ne3+ {[%clk 0:00:07]} 66. Kf2 {[%clk 0:00:20]}  Nc4 {[%clk 0:00:07]} 67. Rc2 {[%clk 0:00:21]}  Nd6 {[%clk 0:00:08]} 68. Rd2 {[%clk 0:00:21]}  Nb5 {[%clk 0:00:08]} 69. Rb2 {[%clk 0:00:22]}  Nd4 {[%clk 0:00:08]} 70. Rb8 {[%clk 0:00:22]}  Rxf3+ {[%clk 0:00:08]} 71. Kg2 {[%clk 0:00:23]}  Rc3 {[%clk 0:00:08]} 72. Rd8 {[%clk 0:00:22]}  Rc2+ {[%clk 0:00:08]} 73. Kf1 {[%clk 0:00:23]}  Nf3 {[%clk 0:00:08]} 74. Rh8+ {[%clk 0:00:23]}  Kg7 {[%clk 0:00:08]} 75. Rd8 {[%clk 0:00:24]}  Nh2+ {[%clk 0:00:08]} 76. Kg1 {[%clk 0:00:25]}  Ng4 {[%clk 0:00:09]} 77. Kf1 {[%clk 0:00:26]}  Ne3+ {[%clk 0:00:09]} 78. Ke1 {[%clk 0:00:26]}  Rg2 {[%clk 0:00:10]} 79. Rd7+ {[%clk 0:00:26]}  Kf6 {[%clk 0:00:10]} 80. Rd6+ {[%clk 0:00:27]}  Kf7 {[%clk 0:00:10]} 81. Rd7+ {[%clk 0:00:28]}  Ke6 {[%clk 0:00:10]} 82. Rd3 {[%clk 0:00:28]}  Ng4 {[%clk 0:00:08]} 83. Kf1 {[%clk 0:00:28]}  Rf2+ {[%clk 0:00:08]} 84. Kg1 {[%clk 0:00:28]}  Re2 {[%clk 0:00:08]} 85. Ra3 {[%clk 0:00:28]}  Re3 {[%clk 0:00:08]} 86. Ra6+ {[%clk 0:00:29]}  Kf7 {[%clk 0:00:08]} 87. Kg2 {[%clk 0:00:30]}  Re2+ {[%clk 0:00:08]} 88. Kg1 {[%clk 0:00:30]}  Re6 {[%clk 0:00:08]} 89. Ra7+ {[%clk 0:00:30]}  Kf6 {[%clk 0:00:09]} 90. Ra8 {[%clk 0:00:31]}  Rc6 {[%clk 0:00:08]} 91. Kg2 {[%clk 0:00:32]}  Ke6 {[%clk 0:00:09]} 92. Re8+ {[%clk 0:00:31]}  Kd5 {[%clk 0:00:09]} 93. Rg8 {[%clk 0:00:32]}  Kd4 {[%clk 0:00:09]} 94. Re8 {[%clk 0:00:32]}  Kd3 {[%clk 0:00:09]} 95. Kg1 {[%clk 0:00:33]}  Rc1+ {[%clk 0:00:08]} 96. Kg2 {[%clk 0:00:33]}  Rc2+ {[%clk 0:00:09]} 97. Kg1 {[%clk 0:00:34]}  Ne3 {[%clk 0:00:10]} 98. Re6 {[%clk 0:00:34]}  Ke2 {[%clk 0:00:10]} 99. Rxg6 {[%clk 0:00:32]}  Kf3 {[%clk 0:00:10]} 100. g4 {[%clk 0:00:30]}  Rc1+ {[%clk 0:00:10]} 101. Kh2 {[%clk 0:00:29]}  Nf1+ {[%clk 0:00:10]} 102. Kg1 {[%clk 0:00:29]}  Ng3+ {[%clk 0:00:11]} 103. Kh2 {[%clk 0:00:30]}  Rh1# {[%clk 0:00:12]} 0-1


[Site "https://www.chess.com"]

[Event "Titled Tuesday Blitz December 20 Late 2022"]
[White "Sielecki, Christof"]
[Black "Kalajzic, Ivan"]
[WhiteFideId "4620437"]
[BlackFideId "14506378"]
[WhiteElo "2443"]
[BlackElo "2163"]
[Result "1-0"]
[Round "05"]
[TimeControl "180+1"]
[Date "2022.12.21"]
[WhiteClock "0:00:37"]
[BlackClock "0:00:07"]

1. e4 {[%clk 0:03:00]}  Nc6 {[%clk 0:02:59]} 2. Nf3 {[%clk 0:03:00]}  d6 {[%clk 0:02:59]} 3. d4 {[%clk 0:02:59]}  Bg4 {[%clk 0:02:58]} 4. d5 {[%clk 0:02:59]}  Nb8 {[%clk 0:02:57]} 5. c4 {[%clk 0:02:57]}  e5 {[%clk 0:02:51]} 6. Be2 {[%clk 0:02:54]}  Nf6 {[%clk 0:02:50]} 7. Nc3 {[%clk 0:02:55]}  g6 {[%clk 0:02:49]} 8. Be3 {[%clk 0:02:54]}  Bg7 {[%clk 0:02:49]} 9. Nd2 {[%clk 0:02:51]}  Bxe2 {[%clk 0:02:43]} 10. Qxe2 {[%clk 0:02:52]}  O-O {[%clk 0:02:43]} 11. g4 {[%clk 0:02:46]}  Nbd7 {[%clk 0:02:41]} 12. h4 {[%clk 0:02:45]}  h5 {[%clk 0:02:38]} 13. Bg5 {[%clk 0:02:27]}  Qc8 {[%clk 0:02:31]} 14. f3 {[%clk 0:02:21]}  c6 {[%clk 0:02:26]} 15. Rg1 {[%clk 0:02:11]}  cxd5 {[%clk 0:02:25]} 16. cxd5 {[%clk 0:02:01]}  Rb8 {[%clk 0:02:16]} 17. a4 {[%clk 0:01:47]}  Qc5 {[%clk 0:02:08]} 18. Be3 {[%clk 0:01:43]}  Qb4 {[%clk 0:01:55]} 19. Qb5 {[%clk 0:01:29]}  Qxb5 {[%clk 0:01:42]} 20. Nxb5 {[%clk 0:01:26]}  hxg4 {[%clk 0:01:42]} 21. fxg4 {[%clk 0:01:26]}  Nc5 {[%clk 0:01:28]} 22. Bxc5 {[%clk 0:01:25]}  dxc5 {[%clk 0:01:29]} 23. Nxa7 {[%clk 0:01:23]}  Nd7 {[%clk 0:01:24]} 24. Nb5 {[%clk 0:01:16]}  f5 {[%clk 0:01:21]} 25. gxf5 {[%clk 0:01:16]}  gxf5 {[%clk 0:01:22]} 26. Nc7 {[%clk 0:01:09]}  Kf7 {[%clk 0:01:15]} 27. exf5 {[%clk 0:01:03]}  Bh6 {[%clk 0:01:10]} 28. Ne4 {[%clk 0:00:59]}  Rg8 {[%clk 0:00:59]} 29. Ke2 {[%clk 0:00:58]}  Rxg1 {[%clk 0:00:16]} 30. Rxg1 {[%clk 0:00:57]}  Rh8 {[%clk 0:00:17]} 31. Ne6 {[%clk 0:00:52]}  Nf6 {[%clk 0:00:13]} 32. N4g5+ {[%clk 0:00:41]}  Ke7 {[%clk 0:00:10]} 33. d6+ {[%clk 0:00:41]}  Kxd6 {[%clk 0:00:09]} 34. Nf7+ {[%clk 0:00:41]}  Kd5 {[%clk 0:00:09]} 35. Nxh8 {[%clk 0:00:41]}  Ne4 {[%clk 0:00:09]} 36. Nf7 {[%clk 0:00:37]}  c4 {[%clk 0:00:07]} 37. Rd1+ {[%clk 0:00:37]} 1-0


[Site "https://www.chess.com"]

[Event "Titled Tuesday Blitz December 20 Late 2022"]
[White "Smith, Garrett L"]
[Black "Floresvillar Gonzalez, Luis Migu"]
[WhiteFideId "2024829"]
[BlackFideId "5100542"]
[WhiteElo "2214"]
[BlackElo "2040"]
[Result "1-0"]
[Round "05"]
[TimeControl "180+1"]
[Date "2022.12.21"]
[WhiteClock "0:00:15"]
[BlackClock "0:00:02"]

1. e4 {[%clk 0:03:00]}  c6 {[%clk 0:02:57]} 2. d4 {[%clk 0:03:00]}  d5 {[%clk 0:02:57]} 3. e5 {[%clk 0:02:59]}  Bf5 {[%clk 0:02:56]} 4. h4 {[%clk 0:02:58]}  h5 {[%clk 0:02:55]} 5. Bg5 {[%clk 0:02:57]}  c5 {[%clk 0:02:48]} 6. dxc5 {[%clk 0:02:37]}  Nc6 {[%clk 0:02:46]} 7. Nc3 {[%clk 0:02:27]}  d4 {[%clk 0:02:40]} 8. Nb5 {[%clk 0:02:14]}  a6 {[%clk 0:02:35]} 9. Na3 {[%clk 0:02:11]}  Nxe5 {[%clk 0:02:25]} 10. Nf3 {[%clk 0:02:06]}  Qa5+ {[%clk 0:01:58]} 11. Qd2 {[%clk 0:02:00]}  Nxf3+ {[%clk 0:01:55]} 12. gxf3 {[%clk 0:01:59]}  Qxc5 {[%clk 0:01:48]} 13. Bd3 {[%clk 0:01:44]}  O-O-O {[%clk 0:01:40]} 14. O-O-O {[%clk 0:01:31]}  f6 {[%clk 0:01:19]} 15. Bf4 {[%clk 0:01:27]}  Bxd3 {[%clk 0:01:19]} 16. Qxd3 {[%clk 0:01:26]}  e5 {[%clk 0:01:17]} 17. Bg3 {[%clk 0:01:14]}  Bd6 {[%clk 0:01:05]} 18. Nc4 {[%clk 0:01:04]}  Bc7 {[%clk 0:00:55]} 19. Rhg1 {[%clk 0:01:03]}  Ne7 {[%clk 0:00:54]} 20. Kb1 {[%clk 0:00:58]}  b5 {[%clk 0:00:51]} 21. Nd2 {[%clk 0:00:58]}  f5 {[%clk 0:00:46]} 22. Rde1 {[%clk 0:00:56]}  Rhe8 {[%clk 0:00:40]} 23. Nb3 {[%clk 0:00:55]}  Qd5 {[%clk 0:00:33]} 24. Qd2 {[%clk 0:00:52]}  f4 {[%clk 0:00:27]} 25. Bh2 {[%clk 0:00:53]}  g6 {[%clk 0:00:26]} 26. Qd3 {[%clk 0:00:50]}  Qc4 {[%clk 0:00:21]} 27. Nd2 {[%clk 0:00:49]}  Qxd3 {[%clk 0:00:20]} 28. cxd3 {[%clk 0:00:50]}  Kb7 {[%clk 0:00:16]} 29. Ne4 {[%clk 0:00:49]}  Rg8 {[%clk 0:00:10]} 30. Nf6 {[%clk 0:00:47]}  Rgf8 {[%clk 0:00:09]} 31. Nh7 {[%clk 0:00:44]}  Rf7 {[%clk 0:00:09]} 32. Ng5 {[%clk 0:00:45]}  Rf5 {[%clk 0:00:09]} 33. Ne6 {[%clk 0:00:43]}  Rd6 {[%clk 0:00:07]} 34. Nxf4 {[%clk 0:00:42]}  exf4 {[%clk 0:00:06]} 35. Rxe7 {[%clk 0:00:43]}  Rff6 {[%clk 0:00:04]} 36. Rc1 {[%clk 0:00:18]}  Rc6 {[%clk 0:00:04]} 37. Rce1 {[%clk 0:00:16]}  Kb6 {[%clk 0:00:03]} 38. R1e4 {[%clk 0:00:15]}  Rcd6 {[%clk 0:00:02]} 39. a3 {[%clk 0:00:15]} 1-0


[Site "https://www.chess.com"]

[Event "Titled Tuesday Blitz December 20 Late 2022"]
[White "Ter-Sahakyan, Samvel"]
[Black "Suder, Jakub"]
[WhiteFideId "13302531"]
[BlackFideId "1195310"]
[WhiteElo "2585"]
[BlackElo "2245"]
[Result "1/2-1/2"]
[Round "05"]
[TimeControl "180+1"]
[Date "2022.12.20"]
[WhiteClock "0:00:02"]
[BlackClock "0:00:09"]

1. d4 {[%clk 0:02:59]}  d5 {[%clk 0:02:56]} 2. c4 {[%clk 0:02:59]}  e6 {[%clk 0:02:57]} 3. Nc3 {[%clk 0:02:59]}  a6 {[%clk 0:02:57]} 4. cxd5 {[%clk 0:02:56]}  exd5 {[%clk 0:02:58]} 5. Nf3 {[%clk 0:02:55]}  Nf6 {[%clk 0:02:57]} 6. Bg5 {[%clk 0:02:55]}  Be6 {[%clk 0:02:58]} 7. Bxf6 {[%clk 0:02:46]}  Qxf6 {[%clk 0:02:59]} 8. Qb3 {[%clk 0:02:45]}  Ra7 {[%clk 0:02:58]} 9. a3 {[%clk 0:02:39]}  Qd8 {[%clk 0:02:55]} 10. Qc2 {[%clk 0:02:32]}  Nd7 {[%clk 0:02:50]} 11. e3 {[%clk 0:02:25]}  Bd6 {[%clk 0:02:48]} 12. Bd3 {[%clk 0:02:21]}  c6 {[%clk 0:02:46]} 13. h4 {[%clk 0:01:31]}  h6 {[%clk 0:02:42]} 14. O-O-O {[%clk 0:01:21]}  Nf6 {[%clk 0:02:37]} 15. Ne5 {[%clk 0:01:13]}  Ra8 {[%clk 0:02:28]} 16. f4 {[%clk 0:01:12]}  c5 {[%clk 0:02:11]} 17. Kb1 {[%clk 0:01:08]}  cxd4 {[%clk 0:02:07]} 18. exd4 {[%clk 0:01:07]}  O-O {[%clk 0:01:58]} 19. f5 {[%clk 0:01:03]}  Bd7 {[%clk 0:01:52]} 20. g4 {[%clk 0:01:02]}  Ne4 {[%clk 0:01:37]} 21. Nxe4 {[%clk 0:00:55]}  dxe4 {[%clk 0:01:37]} 22. Bxe4 {[%clk 0:00:56]}  Rc8 {[%clk 0:01:35]} 23. Qb3 {[%clk 0:00:54]}  Qe8 {[%clk 0:01:24]} 24. Rde1 {[%clk 0:00:36]}  Ba4 {[%clk 0:01:10]} 25. Qd5 {[%clk 0:00:35]}  Bxe5 {[%clk 0:01:04]} 26. Qxe5 {[%clk 0:00:33]}  Qd7 {[%clk 0:00:54]} 27. f6 {[%clk 0:00:30]}  Rfe8 {[%clk 0:00:49]} 28. Qf5 {[%clk 0:00:31]}  Qxf5 {[%clk 0:00:39]} 29. Bxf5 {[%clk 0:00:30]}  Rcd8 {[%clk 0:00:38]} 30. fxg7 {[%clk 0:00:18]}  Rxe1+ {[%clk 0:00:32]} 31. Rxe1 {[%clk 0:00:19]}  Rxd4 {[%clk 0:00:32]} 32. Re7 {[%clk 0:00:10]}  Bb3 {[%clk 0:00:26]} 33. Re1 {[%clk 0:00:06]}  Kxg7 {[%clk 0:00:26]} 34. Rg1 {[%clk 0:00:03]}  Rf4 {[%clk 0:00:23]} 35. Bc8 {[%clk 0:00:03]}  Bd5 {[%clk 0:00:20]} 36. Rd1 {[%clk 0:00:02]}  Bc6 {[%clk 0:00:20]} 37. Rg1 {[%clk 0:00:02]}  a5 {[%clk 0:00:20]} 38. Bf5 {[%clk 0:00:02]}  b6 {[%clk 0:00:18]} 39. Kc2 {[%clk 0:00:02]}  Ba4+ {[%clk 0:00:17]} 40. Kc3 {[%clk 0:00:02]}  Bc6 {[%clk 0:00:16]} 41. Kd3 {[%clk 0:00:02]}  Rf3+ {[%clk 0:00:15]} 42. Kd4 {[%clk 0:00:02]}  Rf2 {[%clk 0:00:16]} 43. b4 {[%clk 0:00:02]}  axb4 {[%clk 0:00:16]} 44. axb4 {[%clk 0:00:03]}  Rb2 {[%clk 0:00:16]} 45. Ke5 {[%clk 0:00:02]}  Rxb4 {[%clk 0:00:15]} 46. Kd6 {[%clk 0:00:03]}  Be4 {[%clk 0:00:14]} 47. Bd7 {[%clk 0:00:02]}  Rd4+ {[%clk 0:00:13]} 48. Ke7 {[%clk 0:00:02]}  Bd5 {[%clk 0:00:12]} 49. Bf5 {[%clk 0:00:02]}  Rd2 {[%clk 0:00:11]} 50. Re1 {[%clk 0:00:02]}  b5 {[%clk 0:00:11]} 51. Rc1 {[%clk 0:00:02]}  b4 {[%clk 0:00:11]} 52. Rb1 {[%clk 0:00:02]}  b3 {[%clk 0:00:11]} 53. h5 {[%clk 0:00:03]}  Re2+ {[%clk 0:00:11]} 54. Kd6 {[%clk 0:00:03]}  Bc4 {[%clk 0:00:10]} 55. Kc5 {[%clk 0:00:03]}  Be6 {[%clk 0:00:05]} 56. Bxe6 {[%clk 0:00:03]}  Rxe6 {[%clk 0:00:06]} 57. Rxb3 {[%clk 0:00:04]}  Kf6 {[%clk 0:00:06]} 58. Rf3+ {[%clk 0:00:03]}  Kg5 {[%clk 0:00:06]} 59. Rxf7 {[%clk 0:00:03]}  Kxg4 {[%clk 0:00:06]} 60. Kd5 {[%clk 0:00:03]}  Re1 {[%clk 0:00:05]} 61. Rg7+ {[%clk 0:00:03]}  Kxh5 {[%clk 0:00:06]} 62. Kd4 {[%clk 0:00:03]}  Kh4 {[%clk 0:00:06]} 63. Kd3 {[%clk 0:00:03]}  h5 {[%clk 0:00:06]} 64. Kd2 {[%clk 0:00:04]}  Re8 {[%clk 0:00:07]} 65. Rg1 {[%clk 0:00:03]}  Kh3 {[%clk 0:00:07]} 66. Rg7 {[%clk 0:00:04]}  h4 {[%clk 0:00:07]} 67. Kd3 {[%clk 0:00:04]}  Kh2 {[%clk 0:00:08]} 68. Kd2 {[%clk 0:00:04]}  h3 {[%clk 0:00:08]} 69. Rg6 {[%clk 0:00:04]}  Kh1 {[%clk 0:00:08]} 70. Rg7 {[%clk 0:00:04]}  h2 {[%clk 0:00:08]} 71. Rg6 {[%clk 0:00:05]}  Re5 {[%clk 0:00:08]} 72. Rg7 {[%clk 0:00:04]}  Re6 {[%clk 0:00:08]} 73. Rg8 {[%clk 0:00:04]}  Re7 {[%clk 0:00:09]} 74. Rg6 {[%clk 0:00:04]}  Ra7 {[%clk 0:00:08]} 75. Ke2 {[%clk 0:00:04]}  Ra2+ {[%clk 0:00:08]} 76. Kf1 {[%clk 0:00:04]}  Ra1+ {[%clk 0:00:08]} 77. Kf2 {[%clk 0:00:05]}  Rg1 {[%clk 0:00:08]} 78. Rf6 {[%clk 0:00:04]}  Rg8 {[%clk 0:00:07]} 79. Rf7 {[%clk 0:00:04]}  Rg6 {[%clk 0:00:07]} 80. Rf8 {[%clk 0:00:04]}  Rg5 {[%clk 0:00:07]} 81. Rf7 {[%clk 0:00:04]}  Rg2+ {[%clk 0:00:07]} 82. Kf1 {[%clk 0:00:04]}  Ra2 {[%clk 0:00:07]} 83. Rf8 {[%clk 0:00:03]}  Ra7 {[%clk 0:00:07]} 84. Kf2 {[%clk 0:00:03]}  Ra1 {[%clk 0:00:07]} 85. Rf7 {[%clk 0:00:02]}  Ra3 {[%clk 0:00:07]} 86. Kf1 {[%clk 0:00:02]}  Ra2 {[%clk 0:00:08]} 87. Rf8 {[%clk 0:00:01]}  Ra1+ {[%clk 0:00:08]} 88. Kf2 {[%clk 0:00:02]}  Ra2+ {[%clk 0:00:09]} 89. Kf1 {[%clk 0:00:02]} 1/2-1/2


[Site "https://www.chess.com"]

[Event "Titled Tuesday Blitz December 20 Late 2022"]
[White "TheKnightOfBosnia"]
[Black "Marin Masis, Jose Esteban"]
[BlackFideId "6508146"]
[WhiteElo "2433"]
[BlackElo "1838"]
[Result "1-0"]
[Round "05"]
[TimeControl "180+1"]
[Date "2022.12.21"]
[WhiteClock "0:00:39"]
[BlackClock "0:00:04"]

1. e4 {[%clk 0:03:00]}  c5 {[%clk 0:02:57]} 2. Nf3 {[%clk 0:03:00]}  Nc6 {[%clk 0:02:55]} 3. d4 {[%clk 0:03:00]}  cxd4 {[%clk 0:02:56]} 4. Nxd4 {[%clk 0:03:01]}  Nf6 {[%clk 0:02:56]} 5. Nc3 {[%clk 0:03:01]}  e5 {[%clk 0:02:57]} 6. Ndb5 {[%clk 0:03:01]}  d6 {[%clk 0:02:57]} 7. a4 {[%clk 0:03:02]}  a6 {[%clk 0:02:54]} 8. Na3 {[%clk 0:03:02]}  Be7 {[%clk 0:02:51]} 9. Bc4 {[%clk 0:02:59]}  O-O {[%clk 0:02:51]} 10. O-O {[%clk 0:02:57]}  Nd4 {[%clk 0:02:49]} 11. Be3 {[%clk 0:02:55]}  Ne6 {[%clk 0:02:45]} 12. f3 {[%clk 0:02:46]}  Bd7 {[%clk 0:02:43]} 13. b3 {[%clk 0:02:31]}  Qa5 {[%clk 0:02:36]} 14. Nd5 {[%clk 0:02:29]}  Nxd5 {[%clk 0:02:32]} 15. Bxd5 {[%clk 0:02:30]}  Rab8 {[%clk 0:02:19]} 16. Nc4 {[%clk 0:02:28]}  Qd8 {[%clk 0:02:13]} 17. Bb6 {[%clk 0:02:19]}  Qc8 {[%clk 0:02:01]} 18. Qd2 {[%clk 0:02:09]}  Nf4 {[%clk 0:01:53]} 19. Rfd1 {[%clk 0:02:06]}  Bc6 {[%clk 0:01:32]} 20. Qf2 {[%clk 0:01:35]}  Nxd5 {[%clk 0:01:10]} 21. exd5 {[%clk 0:01:34]}  Bd7 {[%clk 0:01:10]} 22. Ba7 {[%clk 0:01:33]}  b5 {[%clk 0:01:08]} 23. Nb6 {[%clk 0:01:22]}  Rxb6 {[%clk 0:00:59]} 24. Bxb6 {[%clk 0:01:21]}  bxa4 {[%clk 0:00:56]} 25. bxa4 {[%clk 0:01:21]}  Qc4 {[%clk 0:00:53]} 26. a5 {[%clk 0:01:17]}  Bh4 {[%clk 0:00:44]} 27. g3 {[%clk 0:01:14]}  Bf6 {[%clk 0:00:42]} 28. Kg2 {[%clk 0:01:07]}  e4 {[%clk 0:00:34]} 29. Rac1 {[%clk 0:00:46]}  exf3+ {[%clk 0:00:19]} 30. Qxf3 {[%clk 0:00:47]}  Bg4 {[%clk 0:00:20]} 31. Qd3 {[%clk 0:00:47]}  Qb4 {[%clk 0:00:17]} 32. Re1 {[%clk 0:00:42]}  Bc3 {[%clk 0:00:15]} 33. Re4 {[%clk 0:00:41]}  Qa3 {[%clk 0:00:06]} 34. Rxg4 {[%clk 0:00:39]}  Qxc1 {[%clk 0:00:05]} 35. Qxc3 {[%clk 0:00:40]}  Qd1 {[%clk 0:00:04]} 36. Qxg7# {[%clk 0:00:39]} 1-0


[Site "https://www.chess.com"]

[Event "Titled Tuesday Blitz December 20 Late 2022"]
[White "Torres Dominguez, David"]
[Black "Dylag, Emilia"]
[WhiteFideId "2220857"]
[BlackFideId "21805172"]
[WhiteElo "2037"]
[BlackElo "1878"]
[Result "1-0"]
[Round "05"]
[TimeControl "180+1"]
[Date "2022.12.21"]
[WhiteClock "0:00:59"]
[BlackClock "0:00:19"]

1. e4 {[%clk 0:03:00]}  e5 {[%clk 0:02:57]} 2. Bc4 {[%clk 0:02:59]}  Nf6 {[%clk 0:02:54]} 3. Nc3 {[%clk 0:02:59]}  c6 {[%clk 0:02:54]} 4. d4 {[%clk 0:02:58]}  exd4 {[%clk 0:02:48]} 5. Qxd4 {[%clk 0:02:59]}  d6 {[%clk 0:02:30]} 6. Bf4 {[%clk 0:02:58]}  Be7 {[%clk 0:02:30]} 7. O-O-O {[%clk 0:02:57]}  O-O {[%clk 0:02:26]} 8. Bxd6 {[%clk 0:02:57]}  Bxd6 {[%clk 0:02:26]} 9. Qxd6 {[%clk 0:02:57]}  Qa5 {[%clk 0:02:26]} 10. a3 {[%clk 0:02:48]}  Nbd7 {[%clk 0:02:15]} 11. Nge2 {[%clk 0:02:33]}  Ne5 {[%clk 0:02:14]} 12. Bb3 {[%clk 0:02:33]}  Bg4 {[%clk 0:01:57]} 13. f3 {[%clk 0:02:30]}  Rfd8 {[%clk 0:01:48]} 14. Qb4 {[%clk 0:02:29]}  Qxb4 {[%clk 0:01:46]} 15. axb4 {[%clk 0:02:29]}  Be6 {[%clk 0:01:43]} 16. Bxe6 {[%clk 0:02:25]}  fxe6 {[%clk 0:01:44]} 17. b3 {[%clk 0:02:18]}  Kf7 {[%clk 0:01:33]} 18. Rxd8 {[%clk 0:02:09]}  Rxd8 {[%clk 0:01:31]} 19. Rd1 {[%clk 0:02:09]}  Rxd1+ {[%clk 0:01:31]} 20. Nxd1 {[%clk 0:02:09]}  g5 {[%clk 0:01:28]} 21. h3 {[%clk 0:02:01]}  h5 {[%clk 0:01:20]} 22. Nf2 {[%clk 0:01:52]}  Ne8 {[%clk 0:01:08]} 23. Kd2 {[%clk 0:01:49]}  Nc7 {[%clk 0:01:06]} 24. Nd3 {[%clk 0:01:48]}  Nxd3 {[%clk 0:01:03]} 25. Kxd3 {[%clk 0:01:46]}  e5 {[%clk 0:01:02]} 26. c4 {[%clk 0:01:36]}  Ne6 {[%clk 0:01:01]} 27. g3 {[%clk 0:01:27]}  h4 {[%clk 0:01:00]} 28. gxh4 {[%clk 0:01:25]}  gxh4 {[%clk 0:01:01]} 29. Ke3 {[%clk 0:01:25]}  b6 {[%clk 0:00:51]} 30. f4 {[%clk 0:01:20]}  exf4+ {[%clk 0:00:50]} 31. Nxf4 {[%clk 0:01:21]}  Ng5 {[%clk 0:00:50]} 32. e5 {[%clk 0:01:18]}  Ke7 {[%clk 0:00:47]} 33. b5 {[%clk 0:01:09]}  cxb5 {[%clk 0:00:44]} 34. cxb5 {[%clk 0:01:10]}  Kd7 {[%clk 0:00:42]} 35. b4 {[%clk 0:01:02]}  Ke7 {[%clk 0:00:29]} 36. Kd4 {[%clk 0:00:59]}  Nf3+ {[%clk 0:00:27]} 37. Kd5 {[%clk 0:00:58]}  Nd2 {[%clk 0:00:22]} 38. Ng6+ {[%clk 0:00:58]}  Ke8 {[%clk 0:00:19]} 39. Nxh4 {[%clk 0:00:59]} 1-0


[Site "https://www.chess.com"]